[Event "Titled Tuesday Blitz May 24 Early 2022"]
[White "Dobre, Claudiu-Cristian"]
[Black "Vignesh, N R"]
[WhiteFideId "1211854"]
[BlackFideId "25012215"]
[WhiteElo "2207"]
[BlackElo "2363"]
[Result "0-1"]
[Round "07"]
[TimeControl "180+1"]
[Date "2022.05.25"]
[WhiteClock "0:00:02"]
[BlackClock "0:00:22"]

1. c4 {[%clk 0:03:00]}  Nf6 {[%clk 0:02:59]} 2. Nc3 {[%clk 0:03:00]}  g6 {[%clk 0:03:00]} 3. Nf3 {[%clk 0:03:00]}  Bg7 {[%clk 0:02:59]} 4. d4 {[%clk 0:03:00]}  O-O {[%clk 0:03:00]} 5. e4 {[%clk 0:03:00]}  d6 {[%clk 0:03:00]} 6. Be2 {[%clk 0:03:01]}  e5 {[%clk 0:03:01]} 7. O-O {[%clk 0:03:01]}  Nc6 {[%clk 0:03:02]} 8. d5 {[%clk 0:03:01]}  Ne7 {[%clk 0:03:02]} 9. Ne1 {[%clk 0:03:01]}  Nd7 {[%clk 0:03:03]} 10. f3 {[%clk 0:03:02]}  f5 {[%clk 0:03:03]} 11. g4 {[%clk 0:03:02]}  f4 {[%clk 0:02:53]} 12. h4 {[%clk 0:03:02]}  h5 {[%clk 0:02:48]} 13. g5 {[%clk 0:03:01]}  a5 {[%clk 0:02:46]} 14. Nd3 {[%clk 0:02:58]}  b6 {[%clk 0:02:45]} 15. Bd2 {[%clk 0:02:54]}  Nc5 {[%clk 0:02:44]} 16. Nf2 {[%clk 0:02:54]}  Bd7 {[%clk 0:02:37]} 17. b3 {[%clk 0:02:53]}  Kh7 {[%clk 0:02:34]} 18. Kh2 {[%clk 0:02:53]}  Ra7 {[%clk 0:02:33]} 19. Qc2 {[%clk 0:02:52]}  Qe8 {[%clk 0:02:30]} 20. Nb1 {[%clk 0:02:28]}  c6 {[%clk 0:02:29]} 21. dxc6 {[%clk 0:02:25]}  Nxc6 {[%clk 0:02:29]} 22. Bc3 {[%clk 0:02:18]}  Nd4 {[%clk 0:02:28]} 23. Bxd4 {[%clk 0:02:17]}  exd4 {[%clk 0:02:28]} 24. Bd3 {[%clk 0:01:59]}  b5 {[%clk 0:02:25]} 25. Nd2 {[%clk 0:01:56]}  b4 {[%clk 0:02:05]} 26. a3 {[%clk 0:01:56]}  bxa3 {[%clk 0:01:54]} 27. Rxa3 {[%clk 0:01:54]}  Qb8 {[%clk 0:01:54]} 28. Rfa1 {[%clk 0:01:36]}  Qb4 {[%clk 0:01:53]} 29. e5 {[%clk 0:01:36]}  Bxe5 {[%clk 0:01:52]} 30. Bxg6+ {[%clk 0:01:36]}  Kg7 {[%clk 0:01:52]} 31. Bxh5 {[%clk 0:01:22]}  Bf5 {[%clk 0:01:51]} 32. Nde4 {[%clk 0:01:12]}  d3 {[%clk 0:01:45]} 33. Nxd3 {[%clk 0:01:09]}  Nxd3 {[%clk 0:01:31]} 34. Qxd3 {[%clk 0:01:09]}  Rh8 {[%clk 0:01:31]} 35. Bg4 {[%clk 0:00:54]}  Rxh4+ {[%clk 0:01:30]} 36. Kg2 {[%clk 0:00:49]}  Bg6 {[%clk 0:01:13]} 37. Ra4 {[%clk 0:00:48]}  Qb7 {[%clk 0:01:10]} 38. Rh1 {[%clk 0:00:38]}  Rxg4+ {[%clk 0:01:09]} 39. Kf1 {[%clk 0:00:19]}  Rg3 {[%clk 0:01:04]} 40. c5 {[%clk 0:00:19]}  dxc5 {[%clk 0:00:59]} 41. Ke2 {[%clk 0:00:11]}  Rg2+ {[%clk 0:00:45]} 42. Kf1 {[%clk 0:00:10]}  Rb2 {[%clk 0:00:44]} 43. Qd8 {[%clk 0:00:06]}  Ra8 {[%clk 0:00:30]} 44. Qd3 {[%clk 0:00:02]}  Qxb3 {[%clk 0:00:22]} 0-1


[Site "https://www.chess.com"]

[Event "Titled Tuesday Blitz May 24 Early 2022"]
[White "Domingo Nunez, Ruben"]
[Black "Rahman, Adel"]
[WhiteFideId "22245570"]
[BlackFideId "14204177"]
[WhiteElo "2376"]
[BlackElo "2175"]
[Result "1-0"]
[Round "07"]
[TimeControl "180+1"]
[Date "2022.05.25"]
[WhiteClock "0:01:32"]
[BlackClock "0:01:28"]

1. d4 {[%clk 0:03:00]}  Nf6 {[%clk 0:02:57]} 2. Nc3 {[%clk 0:02:59]}  d5 {[%clk 0:02:55]} 3. g3 {[%clk 0:02:58]}  Bf5 {[%clk 0:02:52]} 4. Bg2 {[%clk 0:02:58]}  c6 {[%clk 0:02:52]} 5. f3 {[%clk 0:02:56]}  h5 {[%clk 0:02:50]} 6. e4 {[%clk 0:02:56]}  dxe4 {[%clk 0:02:47]} 7. fxe4 {[%clk 0:02:57]}  Bg4 {[%clk 0:02:47]} 8. Qd3 {[%clk 0:02:58]}  e5 {[%clk 0:02:34]} 9. dxe5 {[%clk 0:02:29]}  Nfd7 {[%clk 0:02:33]} 10. h3 {[%clk 0:02:30]}  Be6 {[%clk 0:02:32]} 11. Nf3 {[%clk 0:02:30]}  Na6 {[%clk 0:02:18]} 12. Be3 {[%clk 0:02:26]}  Nac5 {[%clk 0:02:11]} 13. Qe2 {[%clk 0:02:26]}  Qc7 {[%clk 0:02:01]} 14. Bf4 {[%clk 0:02:06]}  Be7 {[%clk 0:01:54]} 15. O-O-O {[%clk 0:02:04]}  b5 {[%clk 0:01:53]} 16. Kb1 {[%clk 0:01:53]}  b4 {[%clk 0:01:52]} 17. Nd5 {[%clk 0:01:54]}  cxd5 {[%clk 0:01:40]} 18. exd5 {[%clk 0:01:54]}  Bf5 {[%clk 0:01:39]} 19. Nd4 {[%clk 0:01:39]}  Qa5 {[%clk 0:01:28]} 20. Nxf5 {[%clk 0:01:32]} 1-0


[Site "https://www.chess.com"]

[Event "Titled Tuesday Blitz May 24 Early 2022"]
[White "Fernandez Siles, Luis"]
[Black "Gronnestad, Anita"]
[WhiteFideId "2209420"]
[BlackFideId "1502972"]
[WhiteElo "2212"]
[BlackElo "1933"]
[Result "1-0"]
[Round "07"]
[TimeControl "180+1"]
[Date "2022.05.25"]
[WhiteClock "0:02:04"]
[BlackClock "0:02:02"]

1. e4 {[%clk 0:02:34]}  c5 {[%clk 0:02:55]} 2. Nf3 {[%clk 0:02:32]}  g6 {[%clk 0:02:55]} 3. d4 {[%clk 0:02:30]}  cxd4 {[%clk 0:02:56]} 4. Qxd4 {[%clk 0:02:30]}  Nf6 {[%clk 0:02:55]} 5. Nc3 {[%clk 0:02:30]}  Nc6 {[%clk 0:02:55]} 6. Qa4 {[%clk 0:02:30]}  d6 {[%clk 0:02:55]} 7. e5 {[%clk 0:02:29]}  dxe5 {[%clk 0:02:53]} 8. Nxe5 {[%clk 0:02:29]}  Bg7 {[%clk 0:02:54]} 9. Nxc6 {[%clk 0:02:28]}  bxc6 {[%clk 0:02:55]} 10. Qxc6+ {[%clk 0:02:29]}  Bd7 {[%clk 0:02:55]} 11. Qf3 {[%clk 0:02:26]}  O-O {[%clk 0:02:55]} 12. Bd3 {[%clk 0:02:21]}  Rb8 {[%clk 0:02:54]} 13. O-O {[%clk 0:02:20]}  a5 {[%clk 0:02:45]} 14. Rb1 {[%clk 0:02:19]}  Qb6 {[%clk 0:02:28]} 15. Bf4 {[%clk 0:02:18]}  Bc6 {[%clk 0:02:24]} 16. Qe2 {[%clk 0:02:15]}  Rb7 {[%clk 0:02:21]} 17. Rfe1 {[%clk 0:02:10]}  Nh5 {[%clk 0:02:15]} 18. Be5 {[%clk 0:02:08]}  f6 {[%clk 0:02:08]} 19. Bg3 {[%clk 0:02:06]}  Nxg3 {[%clk 0:02:05]} 20. hxg3 {[%clk 0:02:07]}  e5 {[%clk 0:02:05]} 21. Be4 {[%clk 0:02:04]}  Rd8 {[%clk 0:02:02]} 22. Qc4+ {[%clk 0:02:04]} 1-0


[Site "https://www.chess.com"]

[Event "Titled Tuesday Blitz May 24 Early 2022"]
[White "Ferreira, Vitor Hugo Vieira"]
[Black "Balint, Vilmos"]
[WhiteFideId "2119765"]
[BlackFideId "718050"]
[WhiteElo "2165"]
[BlackElo "2059"]
[Result "1-0"]
[Round "07"]
[TimeControl "180+1"]
[Date "2022.05.25"]
[WhiteClock "0:01:56"]
[BlackClock "0:01:06"]

1. e4 {[%clk 0:03:00]}  e6 {[%clk 0:01:40]} 2. d4 {[%clk 0:02:58]}  d5 {[%clk 0:01:41]} 3. Nc3 {[%clk 0:02:58]}  Bb4 {[%clk 0:01:40]} 4. e5 {[%clk 0:02:59]}  Ne7 {[%clk 0:01:39]} 5. a3 {[%clk 0:02:59]}  Bxc3+ {[%clk 0:01:40]} 6. bxc3 {[%clk 0:02:59]}  b6 {[%clk 0:01:41]} 7. a4 {[%clk 0:02:58]}  Ba6 {[%clk 0:01:41]} 8. Bd3 {[%clk 0:02:57]}  Bxd3 {[%clk 0:01:39]} 9. cxd3 {[%clk 0:02:54]}  Qc8 {[%clk 0:01:40]} 10. Qg4 {[%clk 0:02:53]}  Ng6 {[%clk 0:01:39]} 11. h4 {[%clk 0:02:52]}  h5 {[%clk 0:01:39]} 12. Qg3 {[%clk 0:02:50]}  c5 {[%clk 0:01:40]} 13. dxc5 {[%clk 0:02:49]}  bxc5 {[%clk 0:01:38]} 14. Nf3 {[%clk 0:02:47]}  Nc6 {[%clk 0:01:38]} 15. O-O {[%clk 0:02:46]}  Rb8 {[%clk 0:01:38]} 16. Ba3 {[%clk 0:02:43]}  Nce7 {[%clk 0:01:36]} 17. d4 {[%clk 0:02:42]}  Nf5 {[%clk 0:01:37]} 18. Qg5 {[%clk 0:02:40]}  Qd8 {[%clk 0:01:25]} 19. Bxc5 {[%clk 0:02:36]}  Nfxh4 {[%clk 0:01:24]} 20. Qxd8+ {[%clk 0:02:28]}  Kxd8 {[%clk 0:01:25]} 21. Nxh4 {[%clk 0:02:26]}  Nxh4 {[%clk 0:01:23]} 22. Bxa7 {[%clk 0:02:26]}  Rb7 {[%clk 0:01:23]} 23. Bc5 {[%clk 0:02:26]}  Kc7 {[%clk 0:01:21]} 24. a5 {[%clk 0:02:26]}  Ra8 {[%clk 0:01:19]} 25. a6 {[%clk 0:02:25]}  Rb3 {[%clk 0:01:19]} 26. a7 {[%clk 0:02:23]}  Rxc3 {[%clk 0:01:16]} 27. Rfb1 {[%clk 0:02:23]}  Nf5 {[%clk 0:01:14]} 28. Ra5 {[%clk 0:02:13]}  Rc4 {[%clk 0:01:13]} 29. Rab5 {[%clk 0:02:11]}  Nxd4 {[%clk 0:01:11]} 30. Rb7+ {[%clk 0:02:01]}  Kc6 {[%clk 0:01:11]} 31. Rb8 {[%clk 0:01:58]}  Rxa7 {[%clk 0:01:06]} 32. Bxa7 {[%clk 0:01:56]}  Ne2+ {[%clk 0:01:06]} 33. Kf1 {[%clk 0:01:56]} 1-0


[Site "https://www.chess.com"]

[Event "Titled Tuesday Blitz May 24 Early 2022"]
[White "Fier, Alexandr"]
[Black "Dmitrenko, Viktor"]
[WhiteFideId "2107139"]
[BlackFideId "14110270"]
[WhiteElo "2737"]
[BlackElo "2479"]
[Result "0-1"]
[Round "07"]
[TimeControl "180+1"]
[Date "2022.05.25"]
[WhiteClock "0:01:47"]
[BlackClock "0:00:37"]

1. d4 {[%clk 0:03:00]}  e6 {[%clk 0:02:58]} 2. e4 {[%clk 0:02:57]}  d5 {[%clk 0:02:57]} 3. Nd2 {[%clk 0:02:58]}  Nf6 {[%clk 0:02:53]} 4. e5 {[%clk 0:02:58]}  Nfd7 {[%clk 0:02:52]} 5. Bd3 {[%clk 0:02:59]}  c5 {[%clk 0:02:50]} 6. c3 {[%clk 0:02:59]}  Nc6 {[%clk 0:02:48]} 7. Ne2 {[%clk 0:03:00]}  cxd4 {[%clk 0:02:38]} 8. cxd4 {[%clk 0:03:01]}  f6 {[%clk 0:02:38]} 9. exf6 {[%clk 0:03:02]}  Qxf6 {[%clk 0:02:37]} 10. Nf3 {[%clk 0:03:01]}  h6 {[%clk 0:02:35]} 11. O-O {[%clk 0:02:57]}  Bd6 {[%clk 0:02:35]} 12. Bd2 {[%clk 0:02:54]}  O-O {[%clk 0:02:12]} 13. Bc3 {[%clk 0:02:53]}  Rd8 {[%clk 0:02:07]} 14. Bb5 {[%clk 0:02:50]}  a6 {[%clk 0:01:51]} 15. Bxc6 {[%clk 0:02:49]}  bxc6 {[%clk 0:01:50]} 16. Ng3 {[%clk 0:02:50]}  a5 {[%clk 0:01:41]} 17. Re1 {[%clk 0:02:50]}  a4 {[%clk 0:01:35]} 18. a3 {[%clk 0:02:50]}  Qg6 {[%clk 0:01:29]} 19. Rc1 {[%clk 0:02:46]}  c5 {[%clk 0:01:29]} 20. dxc5 {[%clk 0:02:45]}  Nxc5 {[%clk 0:01:27]} 21. Ne5 {[%clk 0:02:45]}  Bxe5 {[%clk 0:01:18]} 22. Bxe5 {[%clk 0:02:43]}  Nd3 {[%clk 0:01:18]} 23. Rc7 {[%clk 0:02:39]}  Bd7 {[%clk 0:01:18]} 24. h4 {[%clk 0:02:17]}  Nxe1 {[%clk 0:01:08]} 25. Qxe1 {[%clk 0:02:18]}  Rac8 {[%clk 0:01:08]} 26. Rb7 {[%clk 0:02:18]}  Rc4 {[%clk 0:00:57]} 27. h5 {[%clk 0:02:16]}  Qg5 {[%clk 0:00:52]} 28. Bc3 {[%clk 0:02:09]}  Qf4 {[%clk 0:00:49]} 29. Ba5 {[%clk 0:01:58]}  Rc1 {[%clk 0:00:46]} 30. Qxc1 {[%clk 0:01:49]}  Qxc1+ {[%clk 0:00:45]} 31. Kh2 {[%clk 0:01:50]}  Qc6 {[%clk 0:00:40]} 32. Ra7 {[%clk 0:01:48]}  Ra8 {[%clk 0:00:37]} 33. Rc7 {[%clk 0:01:47]}  Qd6 {[%clk 0:00:37]} 0-1


[Site "https://www.chess.com"]

[Event "Titled Tuesday Blitz May 24 Early 2022"]
[White "Gallego Alcaraz, Andres Felipe"]
[Black "Guliev, Logman"]
[WhiteFideId "4402669"]
[BlackFideId "13400061"]
[WhiteElo "2340"]
[BlackElo "2128"]
[Result "1-0"]
[Round "07"]
[TimeControl "180+1"]
[Date "2022.05.25"]
[WhiteClock "0:01:34"]
[BlackClock "0:01:27"]

1. d4 {[%clk 0:03:00]}  d5 {[%clk 0:02:58]} 2. Nf3 {[%clk 0:03:01]}  e6 {[%clk 0:02:58]} 3. c4 {[%clk 0:03:01]}  Nf6 {[%clk 0:02:58]} 4. g3 {[%clk 0:03:02]}  Be7 {[%clk 0:02:58]} 5. Bg2 {[%clk 0:03:02]}  O-O {[%clk 0:02:59]} 6. Nc3 {[%clk 0:03:02]}  dxc4 {[%clk 0:02:58]} 7. Ne5 {[%clk 0:03:03]}  Nc6 {[%clk 0:02:58]} 8. Bxc6 {[%clk 0:03:03]}  bxc6 {[%clk 0:02:58]} 9. Nxc6 {[%clk 0:03:04]}  Qe8 {[%clk 0:02:59]} 10. Nxe7+ {[%clk 0:03:05]}  Qxe7 {[%clk 0:02:59]} 11. Qa4 {[%clk 0:03:05]}  Bb7 {[%clk 0:02:53]} 12. O-O {[%clk 0:02:49]}  e5 {[%clk 0:02:53]} 13. dxe5 {[%clk 0:02:44]}  Qxe5 {[%clk 0:02:52]} 14. Qxc4 {[%clk 0:02:37]}  Rad8 {[%clk 0:02:51]} 15. Bf4 {[%clk 0:02:32]}  Qh5 {[%clk 0:02:48]} 16. f3 {[%clk 0:02:18]}  c5 {[%clk 0:02:46]} 17. Rad1 {[%clk 0:02:15]}  Rfe8 {[%clk 0:02:29]} 18. Rxd8 {[%clk 0:02:14]}  Rxd8 {[%clk 0:02:29]} 19. Rd1 {[%clk 0:02:13]}  Re8 {[%clk 0:02:23]} 20. Qb5 {[%clk 0:02:03]}  Ba8 {[%clk 0:02:16]} 21. Rd6 {[%clk 0:01:57]}  Rc8 {[%clk 0:01:56]} 22. Qa5 {[%clk 0:01:54]}  Qf5 {[%clk 0:01:38]} 23. Rd8+ {[%clk 0:01:47]}  Ne8 {[%clk 0:01:38]} 24. Rxc8 {[%clk 0:01:45]}  Qxc8 {[%clk 0:01:37]} 25. Qxa7 {[%clk 0:01:45]}  h5 {[%clk 0:01:36]} 26. a4 {[%clk 0:01:43]}  h4 {[%clk 0:01:36]} 27. a5 {[%clk 0:01:42]}  h3 {[%clk 0:01:34]} 28. Qb8 {[%clk 0:01:42]}  Qd7 {[%clk 0:01:30]} 29. Qxa8 {[%clk 0:01:34]}  Qd4+ {[%clk 0:01:27]} 30. Kf1 {[%clk 0:01:34]} 1-0


[Site "https://www.chess.com"]

[Event "Titled Tuesday Blitz May 24 Early 2022"]
[White "Garv Gaur"]
[Black "Sadubayev, Airat"]
[WhiteFideId "45030839"]
[BlackFideId "13713264"]
[WhiteElo "1950"]
[BlackElo "2234"]
[Result "1/2-1/2"]
[Round "07"]
[TimeControl "180+1"]
[Date "2022.05.25"]
[WhiteClock "0:00:09"]
[BlackClock "0:00:42"]

1. d4 {[%clk 0:03:00]}  d5 {[%clk 0:02:55]} 2. Nf3 {[%clk 0:03:00]}  Nf6 {[%clk 0:02:54]} 3. c4 {[%clk 0:03:01]}  c6 {[%clk 0:02:55]} 4. g3 {[%clk 0:03:01]}  e6 {[%clk 0:02:54]} 5. Bg2 {[%clk 0:03:01]}  Be7 {[%clk 0:02:54]} 6. O-O {[%clk 0:03:00]}  O-O {[%clk 0:02:54]} 7. Nbd2 {[%clk 0:03:01]}  Nbd7 {[%clk 0:02:53]} 8. Qc2 {[%clk 0:03:01]}  b6 {[%clk 0:02:51]} 9. e4 {[%clk 0:03:01]}  dxe4 {[%clk 0:02:50]} 10. Nxe4 {[%clk 0:03:02]}  Bb7 {[%clk 0:02:49]} 11. Rd1 {[%clk 0:03:01]}  c5 {[%clk 0:02:41]} 12. Nxf6+ {[%clk 0:02:56]}  Nxf6 {[%clk 0:02:35]} 13. dxc5 {[%clk 0:02:55]}  Qc8 {[%clk 0:02:34]} 14. cxb6 {[%clk 0:02:50]}  axb6 {[%clk 0:02:35]} 15. b3 {[%clk 0:02:48]}  b5 {[%clk 0:02:33]} 16. Bb2 {[%clk 0:02:35]}  bxc4 {[%clk 0:02:32]} 17. Qxc4 {[%clk 0:02:35]}  Qxc4 {[%clk 0:02:32]} 18. bxc4 {[%clk 0:02:35]}  Rfc8 {[%clk 0:02:32]} 19. Ne5 {[%clk 0:02:33]}  Bxg2 {[%clk 0:02:24]} 20. Kxg2 {[%clk 0:02:34]}  Ne4 {[%clk 0:02:16]} 21. a4 {[%clk 0:01:36]}  Nc5 {[%clk 0:02:11]} 22. Ba3 {[%clk 0:01:05]}  Rxa4 {[%clk 0:01:49]} 23. Bxc5 {[%clk 0:01:05]}  Rxa1 {[%clk 0:01:50]} 24. Rxa1 {[%clk 0:01:03]}  Bxc5 {[%clk 0:01:51]} 25. Nd3 {[%clk 0:00:46]}  Bd4 {[%clk 0:01:48]} 26. Rc1 {[%clk 0:00:45]}  e5 {[%clk 0:01:47]} 27. c5 {[%clk 0:00:45]}  e4 {[%clk 0:01:42]} 28. Rc4 {[%clk 0:00:37]}  exd3 {[%clk 0:01:32]} 29. Rxd4 {[%clk 0:00:36]}  g5 {[%clk 0:01:31]} 30. Rxd3 {[%clk 0:00:31]}  Rxc5 {[%clk 0:01:30]} 31. g4 {[%clk 0:00:31]}  Kg7 {[%clk 0:01:30]} 32. Kg3 {[%clk 0:00:31]}  Rc4 {[%clk 0:01:28]} 33. f3 {[%clk 0:00:31]}  h6 {[%clk 0:01:26]} 34. h4 {[%clk 0:00:31]}  Rc1 {[%clk 0:01:22]} 35. hxg5 {[%clk 0:00:30]}  hxg5 {[%clk 0:01:22]} 36. Rd5 {[%clk 0:00:31]}  Kg6 {[%clk 0:01:22]} 37. Rf5 {[%clk 0:00:31]}  Rc6 {[%clk 0:01:19]} 38. Rd5 {[%clk 0:00:30]}  Rc3 {[%clk 0:01:18]} 39. Rb5 {[%clk 0:00:29]}  f6 {[%clk 0:01:17]} 40. Ra5 {[%clk 0:00:29]}  Kf7 {[%clk 0:01:18]} 41. Ra6 {[%clk 0:00:27]}  Rd3 {[%clk 0:01:17]} 42. Rb6 {[%clk 0:00:27]}  Ke7 {[%clk 0:01:17]} 43. Ra6 {[%clk 0:00:26]}  Rd6 {[%clk 0:01:17]} 44. Ra4 {[%clk 0:00:16]}  Ke6 {[%clk 0:01:17]} 45. Re4+ {[%clk 0:00:17]}  Kd5 {[%clk 0:01:17]} 46. Re1 {[%clk 0:00:17]}  Rc6 {[%clk 0:01:17]} 47. Rd1+ {[%clk 0:00:16]}  Ke5 {[%clk 0:01:17]} 48. Re1+ {[%clk 0:00:16]}  Kd4 {[%clk 0:01:17]} 49. Rd1+ {[%clk 0:00:11]}  Ke3 {[%clk 0:01:17]} 50. Re1+ {[%clk 0:00:12]}  Kd2 {[%clk 0:01:16]} 51. Re7 {[%clk 0:00:13]}  Rc4 {[%clk 0:01:11]} 52. Re6 {[%clk 0:00:12]}  Rf4 {[%clk 0:01:10]} 53. Re7 {[%clk 0:00:12]}  Kd3 {[%clk 0:01:10]} 54. Re6 {[%clk 0:00:12]}  Kd4 {[%clk 0:01:10]} 55. Re8 {[%clk 0:00:12]}  Kd5 {[%clk 0:01:10]} 56. Re1 {[%clk 0:00:12]}  Rd4 {[%clk 0:01:10]} 57. Re8 {[%clk 0:00:12]}  Rc4 {[%clk 0:01:08]} 58. Rd8+ {[%clk 0:00:11]}  Ke6 {[%clk 0:01:08]} 59. Re8+ {[%clk 0:00:11]}  Kf7 {[%clk 0:01:08]} 60. Re1 {[%clk 0:00:11]}  Rc5 {[%clk 0:01:05]} 61. Ra1 {[%clk 0:00:10]}  Ke6 {[%clk 0:01:04]} 62. Re1+ {[%clk 0:00:10]}  Re5 {[%clk 0:01:03]} 63. Ra1 {[%clk 0:00:10]}  Re2 {[%clk 0:00:59]} 64. Ra5 {[%clk 0:00:07]}  Kd6 {[%clk 0:00:58]} 65. Ra6+ {[%clk 0:00:07]}  Ke5 {[%clk 0:00:58]} 66. Ra5+ {[%clk 0:00:08]}  Ke6 {[%clk 0:00:50]} 67. Ra6+ {[%clk 0:00:09]}  Kf7 {[%clk 0:00:50]} 68. Ra7+ {[%clk 0:00:09]}  Re7 {[%clk 0:00:51]} 69. Ra3 {[%clk 0:00:08]}  Rc7 {[%clk 0:00:49]} 70. f4 {[%clk 0:00:09]}  Ke6 {[%clk 0:00:42]} 71. fxg5 {[%clk 0:00:08]}  fxg5 {[%clk 0:00:43]} 72. Re3+ {[%clk 0:00:08]}  Kf6 {[%clk 0:00:43]} 73. Rf3+ {[%clk 0:00:08]}  Kg6 {[%clk 0:00:43]} 74. Ra3 {[%clk 0:00:09]}  Rc4 {[%clk 0:00:42]} 75. Ra6+ {[%clk 0:00:09]}  Kf7 {[%clk 0:00:43]} 76. Ra5 {[%clk 0:00:09]}  Kf6 {[%clk 0:00:43]} 77. Ra6+ {[%clk 0:00:09]}  Kf7 {[%clk 0:00:42]} 78. Ra5 {[%clk 0:00:09]} 1/2-1/2


[Site "https://www.chess.com"]

[Event "Titled Tuesday Blitz May 24 Early 2022"]
[White "Gatterer, Florian"]
[Black "Stevens, Christian"]
[WhiteFideId "811688"]
[BlackFideId "2604450"]
[WhiteElo "2218"]
[BlackElo "2485"]
[Result "0-1"]
[Round "07"]
[TimeControl "180+1"]
[Date "2022.05.25"]
[WhiteClock "0:00:59"]
[BlackClock "0:00:05"]

1. f4 {[%clk 0:03:00]}  d5 {[%clk 0:00:16]} 2. Nf3 {[%clk 0:02:58]}  g6 {[%clk 0:00:17]} 3. g3 {[%clk 0:02:58]}  Bg7 {[%clk 0:00:17]} 4. Bg2 {[%clk 0:02:59]}  Nf6 {[%clk 0:00:17]} 5. O-O {[%clk 0:02:59]}  O-O {[%clk 0:00:18]} 6. d3 {[%clk 0:03:00]}  d4 {[%clk 0:00:18]} 7. c3 {[%clk 0:02:58]}  Nc6 {[%clk 0:00:18]} 8. h3 {[%clk 0:02:55]}  Nd5 {[%clk 0:00:17]} 9. Qc2 {[%clk 0:02:46]}  Re8 {[%clk 0:00:17]} 10. a4 {[%clk 0:02:45]}  a5 {[%clk 0:00:16]} 11. Na3 {[%clk 0:02:42]}  b6 {[%clk 0:00:16]} 12. Nc4 {[%clk 0:02:42]}  dxc3 {[%clk 0:00:16]} 13. e4 {[%clk 0:02:33]}  Ndb4 {[%clk 0:00:15]} 14. Qb3 {[%clk 0:02:24]}  Qxd3 {[%clk 0:00:15]} 15. Ne1 {[%clk 0:02:10]}  Qd4+ {[%clk 0:00:05]} 16. Be3 {[%clk 0:02:10]}  cxb2 {[%clk 0:00:05]} 17. Rb1 {[%clk 0:02:01]}  Qc3 {[%clk 0:00:05]} 18. Nd2 {[%clk 0:01:39]}  Qxb3 {[%clk 0:00:03]} 19. Nxb3 {[%clk 0:01:40]}  Ba6 {[%clk 0:00:03]} 20. Rf2 {[%clk 0:01:40]}  Nd3 {[%clk 0:00:03]} 21. Nxd3 {[%clk 0:01:33]}  Bxd3 {[%clk 0:00:04]} 22. Rbxb2 {[%clk 0:01:33]}  Bxb2 {[%clk 0:00:03]} 23. Rxb2 {[%clk 0:01:34]}  Rad8 {[%clk 0:00:04]} 24. h4 {[%clk 0:01:34]}  Nb4 {[%clk 0:00:04]} 25. Nd4 {[%clk 0:01:31]}  c5 {[%clk 0:00:03]} 26. Nb5 {[%clk 0:01:14]}  Bxb5 {[%clk 0:00:03]} 27. axb5 {[%clk 0:01:15]}  a4 {[%clk 0:00:04]} 28. Rb1 {[%clk 0:01:04]}  a3 {[%clk 0:00:04]} 29. e5 {[%clk 0:01:05]}  a2 {[%clk 0:00:04]} 30. Ra1 {[%clk 0:01:05]}  Ra8 {[%clk 0:00:04]} 31. Bxa8 {[%clk 0:01:03]}  Rxa8 {[%clk 0:00:05]} 32. Kf2 {[%clk 0:01:03]}  Nc2 {[%clk 0:00:05]} 33. Rd1 {[%clk 0:01:02]}  a1=Q {[%clk 0:00:05]} 34. Rd2 {[%clk 0:01:02]}  Qb1 {[%clk 0:00:04]} 35. h5 {[%clk 0:01:02]}  Nxe3 {[%clk 0:00:05]} 36. hxg6 {[%clk 0:01:00]}  hxg6 {[%clk 0:00:04]} 37. Re2 {[%clk 0:01:00]}  Ng4+ {[%clk 0:00:03]} 38. Kf3 {[%clk 0:01:01]}  Qd3+ {[%clk 0:00:03]} 39. Kxg4 {[%clk 0:01:00]}  Qxe2+ {[%clk 0:00:04]} 40. Kg5 {[%clk 0:01:00]}  Ra3 {[%clk 0:00:04]} 41. e6 {[%clk 0:01:00]}  Rxg3+ {[%clk 0:00:05]} 42. Kh6 {[%clk 0:00:59]}  Qh2# {[%clk 0:00:05]} 0-1


[Site "https://www.chess.com"]

[Event "Titled Tuesday Blitz May 24 Early 2022"]
[White "Hart, Braeden"]
[Black "Proudian, Armen"]
[WhiteFideId "30962587"]
[BlackFideId "2130734"]
[WhiteElo "2384"]
[BlackElo "2380"]
[Result "0-1"]
[Round "07"]
[TimeControl "180+1"]
[Date "2022.05.25"]
[WhiteClock "0:01:30"]
[BlackClock "0:01:42"]

1. e4 {[%clk 0:03:00]}  e5 {[%clk 0:02:59]} 2. Nf3 {[%clk 0:03:00]}  Nc6 {[%clk 0:02:59]} 3. Nc3 {[%clk 0:02:58]}  Nf6 {[%clk 0:02:59]} 4. Nxe5 {[%clk 0:02:58]}  Nxe5 {[%clk 0:02:57]} 5. d4 {[%clk 0:02:59]}  Bb4 {[%clk 0:02:56]} 6. dxe5 {[%clk 0:02:59]}  Nxe4 {[%clk 0:02:56]} 7. Qg4 {[%clk 0:03:00]}  d5 {[%clk 0:02:36]} 8. Qxg7 {[%clk 0:02:53]}  Rf8 {[%clk 0:02:36]} 9. a3 {[%clk 0:02:25]}  Bxc3+ {[%clk 0:02:25]} 10. bxc3 {[%clk 0:02:25]}  Qh4 {[%clk 0:01:57]} 11. g3 {[%clk 0:02:02]}  Qg4 {[%clk 0:01:57]} 12. Qxh7 {[%clk 0:01:43]}  Qf3 {[%clk 0:01:50]} 13. Bh6 {[%clk 0:01:33]}  Qxc3+ {[%clk 0:01:43]} 14. Ke2 {[%clk 0:01:31]}  Bg4+ {[%clk 0:01:43]} 15. f3 {[%clk 0:01:30]}  Bxf3# {[%clk 0:01:42]} 0-1


[Site "https://www.chess.com"]

[Event "Titled Tuesday Blitz May 24 Early 2022"]
[White "Hernandez Jimenez, Alexander Andres"]
[Black "Dahlgren, James Allen"]
[WhiteFideId "3900452"]
[BlackFideId "22256873"]
[WhiteElo "2098"]
[BlackElo "2065"]
[Result "1-0"]
[Round "07"]
[TimeControl "180+1"]
[Date "2022.05.25"]
[WhiteClock "0:00:04"]
[BlackClock "0:00:04"]

1. e4 {[%clk 0:03:00]}  e6 {[%clk 0:02:59]} 2. d4 {[%clk 0:02:54]}  c5 {[%clk 0:02:58]} 3. Nf3 {[%clk 0:02:53]}  cxd4 {[%clk 0:02:48]} 4. Nxd4 {[%clk 0:02:52]}  Nc6 {[%clk 0:02:45]} 5. Nc3 {[%clk 0:02:51]}  Nf6 {[%clk 0:02:33]} 6. Be2 {[%clk 0:02:51]}  Bb4 {[%clk 0:02:26]} 7. O-O {[%clk 0:02:49]}  Bxc3 {[%clk 0:02:18]} 8. bxc3 {[%clk 0:02:45]}  Nxe4 {[%clk 0:02:19]} 9. Nxc6 {[%clk 0:01:58]}  bxc6 {[%clk 0:02:15]} 10. Qd4 {[%clk 0:01:39]}  Nf6 {[%clk 0:01:58]} 11. Ba3 {[%clk 0:01:36]}  d5 {[%clk 0:01:52]} 12. c4 {[%clk 0:01:26]}  Bd7 {[%clk 0:00:46]} 13. cxd5 {[%clk 0:01:22]}  cxd5 {[%clk 0:00:43]} 14. c4 {[%clk 0:01:10]}  Rc8 {[%clk 0:00:42]} 15. cxd5 {[%clk 0:01:10]}  Nxd5 {[%clk 0:00:43]} 16. Qxa7 {[%clk 0:01:05]}  Qb6 {[%clk 0:00:39]} 17. Qxb6 {[%clk 0:01:03]}  Nxb6 {[%clk 0:00:40]} 18. Rfc1 {[%clk 0:01:01]}  f6 {[%clk 0:00:27]} 19. Bc5 {[%clk 0:00:52]}  Nd5 {[%clk 0:00:25]} 20. a4 {[%clk 0:00:51]}  Kf7 {[%clk 0:00:25]} 21. a5 {[%clk 0:00:46]}  Nf4 {[%clk 0:00:19]} 22. Bf1 {[%clk 0:00:44]}  Bc6 {[%clk 0:00:15]} 23. a6 {[%clk 0:00:41]}  Bd5 {[%clk 0:00:09]} 24. a7 {[%clk 0:00:35]}  Ra8 {[%clk 0:00:08]} 25. g3 {[%clk 0:00:27]}  Ng6 {[%clk 0:00:07]} 26. Bg2 {[%clk 0:00:26]}  Rhc8 {[%clk 0:00:05]} 27. Bxd5 {[%clk 0:00:23]}  exd5 {[%clk 0:00:06]} 28. Rab1 {[%clk 0:00:16]}  Ke6 {[%clk 0:00:06]} 29. Rb6+ {[%clk 0:00:15]}  Ke5 {[%clk 0:00:06]} 30. Re1+ {[%clk 0:00:14]}  Kf5 {[%clk 0:00:05]} 31. Rb5 {[%clk 0:00:11]}  Ne5 {[%clk 0:00:05]} 32. Kg2 {[%clk 0:00:07]}  h5 {[%clk 0:00:05]} 33. Bd4 {[%clk 0:00:06]}  Rd8 {[%clk 0:00:04]} 34. Rb7 {[%clk 0:00:05]}  Nd3 {[%clk 0:00:04]} 35. Re3 {[%clk 0:00:04]} 1-0


[Site "https://www.chess.com"]